[Event "MČR juniorů a juniorek v rapid šachu 2023"]
[Site "Czech Republic"]
[Date "2023.09.23"]
[Round "4.14"]
[White "Housa, Jan"]
[Black "Simunek, Jakub Simon"]
[Result "1/2-1/2"]
[TimeControl "20 min + 5 sec per move"]
[WhiteFideId "23736356"]
[BlackFideId "23709464"]
[WhiteElo "1439"]
[BlackElo "1843"]

1. d4 d5 {[%clk 00:20:06]} {[%emt 00:00:03]} 2. c4 {[%clk 00:20:09]} c6 {[%clk
00:20:09]} {[%emt 00:00:02]} 3. Nf3 {[%clk 00:20:13]} {[%emt 00:00:02]} Nf6
{[%clk 00:20:13]} {[%emt 00:00:01]} 4. Qc2 {[%clk 00:20:17]} dxc4 {[%clk
00:19:40]} {[%emt 00:00:38]} 5. Qxc4 {[%clk 00:20:19]} {[%emt 00:00:03]} Nbd7
{[%clk 00:19:05]} {[%emt 00:00:41]} 6. g3 {[%clk 00:20:20]} {[%emt 00:00:03]}
Nb6 {[%clk 00:19:05]} {[%emt 00:00:05]} 7. Qc2 {[%clk 00:20:24]} g6 {[%clk
00:19:03]} {[%emt 00:00:08]} 8. e4 {[%clk 00:20:11]} {[%emt 00:00:17]} Bg4
{[%clk 00:16:44]} {[%emt 00:02:24]} 9. Nbd2 {[%clk 00:20:06]} {[%emt 00:00:09]}
Bg7 {[%clk 00:16:34]} {[%emt 00:00:16]} 10. Bg2 {[%clk 00:19:52]} {[%emt
00:00:19]} O-O {[%clk 00:16:37]} {[%emt 00:00:02]} 11. O-O {[%clk 00:19:54]}
{[%emt 00:00:03]} Qc8 {[%clk 00:16:18]} {[%emt 00:00:25]} 12. Nb3 {[%clk
00:19:24]} {[%emt 00:00:35]} Bh3 {[%clk 00:16:00]} {[%emt 00:00:23]} 13. Be3
{[%clk 00:19:09]} {[%emt 00:00:19]} Bxg2 {[%clk 00:16:02]} {[%emt 00:00:04]} 14.
Kxg2 {[%clk 00:19:11]} {[%emt 00:00:02]} Qe6 {[%clk 00:13:07]} {[%emt
00:03:01]} 15. Nc5 {[%clk 00:17:06]} {[%emt 00:02:09]} Qc4 {[%clk 00:13:11]} 16.
Qb1 {[%clk 00:17:10]} {[%emt 00:00:02]} Ng4 {[%clk 00:13:14]} 17. Qc1 {[%clk
00:15:55]} {[%emt 00:01:20]} Qxc1 {[%clk 00:07:44]} {[%emt 00:05:36]} 18. Raxc1
{[%clk 00:15:42]} {[%emt 00:00:17]} Nxe3+ {[%clk 00:07:45]} {[%emt 00:00:05]}
19. fxe3 {[%clk 00:15:45]} {[%emt 00:00:01]} Rab8 {[%clk 00:07:38]} {[%emt
00:00:12]} 20. a4 {[%clk 00:15:09]} {[%emt 00:00:42]} Rfd8 {[%clk 00:06:39]}
{[%emt 00:01:03]} 21. Ng5 {[%clk 00:14:23]} {[%emt 00:00:50]} Bf6 {[%clk
00:06:32]} {[%emt 00:00:13]} 22. Nxf7 {[%clk 00:13:59]} {[%emt 00:00:29]} Kxf7
{[%clk 00:06:36]} 23. e5 {[%clk 00:14:00]} {[%emt 00:00:05]} Nd5 {[%clk
00:04:43]} {[%emt 00:01:57]} 24. Rce1 {[%clk 00:12:46]} {[%emt 00:01:19]} b6
{[%clk 00:04:30]} {[%emt 00:00:19]} 25. Nd3 {[%clk 00:12:09]} {[%emt 00:00:41]}
Kg7 {[%clk 00:04:13]} {[%emt 00:00:23]} 26. exf6+ {[%clk 00:11:39]} {[%emt
00:00:35]} exf6 {[%clk 00:04:15]} {[%emt 00:00:03]} 27. e4 {[%clk 00:09:50]}
{[%emt 00:01:54]} Ne7 {[%clk 00:04:15]} {[%emt 00:00:04]} 28. e5 {[%clk
00:09:53]} {[%emt 00:00:02]} fxe5 {[%clk 00:04:18]} {[%emt 00:00:03]} 29. Nxe5
{[%clk 00:08:34]} {[%emt 00:01:23]} Rf8 {[%clk 00:04:17]} {[%emt 00:00:06]} 30.
Nd7 {[%clk 00:05:36]} {[%emt 00:03:03]} Rxf1 {[%clk 00:04:12]} {[%emt
00:00:10]} 31. Rxe7+ {[%clk 00:05:38]} {[%emt 00:00:03]} Kh6 {[%clk 00:03:40]}
{[%emt 00:00:37]} 32. Kxf1 {[%clk 00:05:37]} {[%emt 00:00:07]} Rd8 {[%clk
00:03:23]} {[%emt 00:00:22]} 33. Ke2 {[%clk 00:05:12]} {[%emt 00:00:30]} c5
{[%clk 00:03:27]} 34. d5 {[%clk 00:05:13]} {[%emt 00:00:04]} Kg5 {[%clk
00:03:23]} {[%emt 00:00:09]} 35. d6 {[%clk 00:04:30]} {[%emt 00:00:49]} h5
{[%clk 00:03:13]} {[%emt 00:00:14]} 36. h3 {[%clk 00:03:30]} {[%emt 00:01:05]}
h4 {[%clk 00:03:12]} {[%emt 00:00:06]} 37. g4 {[%clk 00:03:32]} {[%emt
00:00:02]} Kf4 {[%clk 00:03:10]} {[%emt 00:00:08]} 38. Kf2 {[%clk 00:02:49]}
{[%emt 00:00:48]} g5 {[%clk 00:03:14]} {[%emt 00:00:01]} 39. b3 {[%clk
00:02:40]} {[%emt 00:00:14]} a6 {[%clk 00:03:07]} {[%emt 00:00:13]} 40. Nxb6
{[%clk 00:02:29]} {[%emt 00:00:16]} Rxd6 {[%clk 00:03:10]} {[%emt 00:00:01]} 41.
Nc4 {[%clk 00:02:17]} {[%emt 00:00:17]} Rd3 {[%clk 00:03:00]} {[%emt 00:00:15]}
42. Re3 {[%clk 00:02:07]} {[%emt 00:00:15]} Rd1 {[%clk 00:02:49]} {[%emt
00:00:16]} 43. Rf3+ {[%clk 00:01:41]} {[%emt 00:00:31]} Ke4 {[%clk 00:02:53]}
44. Rf5 {[%clk 00:01:39]} {[%emt 00:00:07]} Rd3 {[%clk 00:02:40]} {[%emt
00:00:18]} 45. Rxg5 {[%clk 00:01:10]} {[%emt 00:00:34]} Rxh3 {[%clk 00:02:34]}
{[%emt 00:00:11]} 46. Rf5 {[%clk 00:01:04]} {[%emt 00:00:11]} Rg3 {[%clk
00:01:53]} {[%emt 00:00:47]} 47. Nd2+ {[%clk 00:00:56]} {[%emt 00:00:13]} Kd4
{[%clk 00:01:23]} {[%emt 00:00:33]} 48. Nf3+ {[%clk 00:00:52]} {[%emt
00:00:09]} Kc3 {[%clk 00:01:24]} {[%emt 00:00:03]} 49. g5 {[%clk 00:00:15]}
{[%emt 00:00:44]} Rg4 {[%clk 00:01:28]} {[%emt 00:00:02]} 50. Ne5 {[%clk
00:00:08]} {[%emt 00:00:11]} Rd4 {[%clk 00:01:05]} {[%emt 00:00:27]} 51. Rf3+
{[%clk 00:00:12]} {[%emt 00:00:02]} Kc2 {[%clk 00:00:54]} {[%emt 00:00:16]} 52.
g6 {[%clk 00:00:15]} {[%emt 00:00:02]} Rd2 {[%clk 00:00:49]} {[%emt 00:00:10]}
53. Kg1 {[%clk 00:00:17]} {[%emt 00:00:03]} Rd8 {[%clk 00:00:26]} {[%emt
00:00:27]} 54. g7 {[%clk 00:00:09]} {[%emt 00:00:14]} Rg8 {[%clk 00:00:23]}
{[%emt 00:00:08]} 55. Rf7 {[%clk 00:00:12]} {[%emt 00:00:02]} Kxb3 {[%clk
00:00:25]} {[%emt 00:00:03]} 56. Nd7 {[%clk 00:00:14]} {[%emt 00:00:03]} c4
{[%clk 00:00:25]} {[%emt 00:00:05]} 57. Nf6 {[%clk 00:00:14]} {[%emt 00:00:06]}
Rxg7+ {[%clk 00:00:22]} {[%emt 00:00:08]} 58. Rxg7 {[%clk 00:00:17]} {[%emt
00:00:02]} c3 {[%clk 00:00:26]} 59. Ne4 {[%clk 00:00:16]} {[%emt 00:00:06]} c2
{[%clk 00:00:25]} {[%emt 00:00:06]} 60. Rc7 {[%clk 00:00:18]} {[%emt 00:00:03]}
Kb2 {[%clk 00:00:23]} {[%emt 00:00:06]} 61. Rb7+ {[%clk 00:00:21]} {[%emt
00:00:04]} Ka3 {[%clk 00:00:24]} {[%emt 00:00:02]} 62. Rc7 {[%clk 00:00:08]}
{[%emt 00:00:19]} Kb2 {[%clk 00:00:26]} {[%emt 00:00:04]} 63. Rb7+ {[%clk
00:00:09]} {[%emt 00:00:03]} Ka3 {[%clk 00:00:29]} {[%emt 00:00:02]} 64. Rc7
{[%clk 00:00:12]} {[%emt 00:00:02]} Kb2 {[%emt 00:00:08]} 65. Nc5 1/2-1/2

[Event "MČR juniorů a juniorek v rapid šachu 2023"]
[Site "Czech Republic"]
[Date "2023.09.23"]
[Round "4.15"]
[White "Nagyova, Daniela"]
[Black "Dobsa, Emma"]
[Result "0-1"]
[TimeControl "20 min + 5 sec per move"]
[WhiteFideId "390070"]
[BlackFideId "23709391"]
[WhiteElo "1762"]
[BlackElo "1480"]

1. e4 {[%clk 00:20:07]} {[%emt 00:00:02]} e5 {[%clk 00:20:09]} 2. Nf3 {[%clk
00:20:09]} {[%emt 00:00:03]} Nc6 {[%clk 00:20:12]} {[%emt 00:00:03]} 3. Bc4
{[%clk 00:20:07]} {[%emt 00:00:06]} Bc5 {[%clk 00:20:16]} {[%emt 00:00:02]} 4.
b4 {[%clk 00:19:58]} {[%emt 00:00:14]} Bxb4 {[%clk 00:20:17]} {[%emt 00:00:04]}
5. c3 {[%clk 00:20:01]} {[%emt 00:00:02]} Ba5 {[%clk 00:20:20]} {[%emt
00:00:02]} 6. d4 {[%clk 00:20:00]} {[%emt 00:00:05]} exd4 {[%clk 00:20:20]}
{[%emt 00:00:06]} 7. O-O {[%clk 00:20:00]} {[%emt 00:00:04]} Nge7 {[%clk
00:20:07]} {[%emt 00:00:19]} 8. cxd4 {[%clk 00:19:34]} {[%emt 00:00:31]} d5
{[%clk 00:20:08]} {[%emt 00:00:04]} 9. exd5 {[%clk 00:19:30]} {[%emt 00:00:09]}
Nxd5 {[%clk 00:20:12]} {[%emt 00:00:02]} 10. Ba3 {[%clk 00:19:15]} {[%emt
00:00:20]} Be6 {[%clk 00:20:14]} {[%emt 00:00:03]} 11. Bb5 {[%clk 00:18:53]}
{[%emt 00:00:26]} Bb4 {[%clk 00:19:17]} {[%emt 00:01:03]} 12. Bxc6+ {[%clk
00:18:45]} {[%emt 00:00:13]} bxc6 {[%clk 00:19:18]} {[%emt 00:00:04]} 13. Bxb4
{[%clk 00:18:48]} {[%emt 00:00:02]} Nxb4 {[%clk 00:19:21]} {[%emt 00:00:02]} 14.
Qa4 {[%clk 00:18:38]} {[%emt 00:00:15]} Qd6 {[%clk 00:18:57]} {[%emt 00:00:29]}
15. Nc3 {[%clk 00:17:57]} {[%emt 00:00:46]} O-O {[%clk 00:14:11]} {[%emt
00:04:50]} 16. Ne4 {[%clk 00:15:46]} {[%emt 00:02:16]} Qe7 {[%clk 00:12:56]}
{[%emt 00:01:20]} 17. Nc5 {[%clk 00:14:39]} {[%emt 00:01:12]} Nd5 {[%clk
00:09:50]} {[%emt 00:03:12]} 18. Qxc6 {[%clk 00:12:48]} {[%emt 00:01:56]} Nf4
{[%clk 00:09:07]} {[%emt 00:00:48]} 19. Nxe6 {[%clk 00:08:46]} {[%emt
00:04:07]} Nxe6 {[%clk 00:09:09]} {[%emt 00:00:02]} 20. Rfe1 {[%clk 00:07:14]}
{[%emt 00:01:37]} Qd6 {[%clk 00:07:44]} {[%emt 00:01:31]} 21. Qc4 {[%clk
00:06:45]} {[%emt 00:00:34]} Rad8 {[%clk 00:06:44]} {[%emt 00:01:05]} 22. Rac1
{[%clk 00:04:13]} {[%emt 00:02:37]} Qf4 {[%clk 00:04:54]} {[%emt 00:01:54]} 23.
h3 {[%clk 00:02:15]} {[%emt 00:02:04]} Qf5 {[%clk 00:02:33]} {[%emt 00:02:24]}
24. Re5 {[%clk 00:01:40]} {[%emt 00:00:41]} Qf6 {[%clk 00:01:52]} {[%emt
00:00:46]} 25. d5 {[%clk 00:00:53]} {[%emt 00:00:53]} Nf4 {[%clk 00:00:55]}
{[%emt 00:01:02]} 26. Qxc7 {[%clk 00:00:37]} {[%emt 00:00:21]} Nxd5 {[%clk
00:00:22]} {[%emt 00:00:39]} 27. Qxa7 {[%clk 00:00:27]} {[%emt 00:00:14]} Nf4
{[%clk 00:00:25]} {[%emt 00:00:02]} 28. Re3 {[%clk 00:00:15]} {[%emt 00:00:17]}
Ra8 {[%clk 00:00:14]} {[%emt 00:00:16]} 29. Qc7 {[%clk 00:00:12]} {[%emt
00:00:08]} Rxa2 {[%clk 00:00:15]} {[%emt 00:00:04]} 30. Rc6 {[%clk 00:00:13]}
{[%emt 00:00:03]} Qa1+ {[%clk 00:00:11]} {[%emt 00:00:09]} 31. Re1 {[%clk
00:00:14]} {[%emt 00:00:05]} Qb2 {[%clk 00:00:12]} {[%emt 00:00:04]} 32. Qxf4
{[%clk 00:00:07]} {[%emt 00:00:12]} Qxf2+ {[%clk 00:00:16]} {[%emt 00:00:01]}
33. Kh1 {[%clk 00:00:10]} {[%emt 00:00:02]} Qxg2# {[%clk 00:00:20]} {[%emt
00:00:02]} 0-1

[Event "MČR juniorů a juniorek v rapid šachu 2023"]
[Site "Czech Republic"]
[Date "2023.09.23"]
[Round "4.16"]
[White "Merinsky, Vaclav"]
[Black "Cinkova, Vicky"]
[Result "1-0"]
[TimeControl "20 min + 5 sec per move"]
[WhiteFideId "390062"]
[BlackFideId "23725826"]
[WhiteElo "1869"]
[BlackElo "1300"]

1. e4 {[%clk 00:20:07]} {[%emt 00:00:02]} c5 {[%clk 00:19:52]} {[%emt
00:00:20]} 2. d4 {[%clk 00:20:10]} {[%emt 00:00:01]} cxd4 {[%clk 00:19:55]}
{[%emt 00:00:02]} 3. Qxd4 {[%clk 00:20:10]} {[%emt 00:00:04]} Nc6 {[%clk
00:19:59]} {[%emt 00:00:01]} 4. Qd1 {[%clk 00:20:13]} {[%emt 00:00:02]} g6
{[%clk 00:20:03]} {[%emt 00:00:01]} 5. Nc3 {[%clk 00:19:56]} {[%emt 00:00:23]}
Bg7 {[%clk 00:20:05]} {[%emt 00:00:03]} 6. Bd2 {[%clk 00:19:58]} {[%emt
00:00:03]} Nf6 {[%clk 00:20:05]} {[%emt 00:00:05]} 7. Bc4 {[%clk 00:19:56]}
{[%emt 00:00:07]} O-O {[%clk 00:20:00]} {[%emt 00:00:10]} 8. Nf3 {[%clk
00:19:49]} {[%emt 00:00:11]} e6 {[%clk 00:19:52]} {[%emt 00:00:13]} 9. O-O
{[%clk 00:19:48]} {[%emt 00:00:06]} d5 {[%clk 00:19:40]} {[%emt 00:00:18]} 10.
exd5 {[%clk 00:18:52]} {[%emt 00:01:01]} Nxd5 {[%clk 00:19:32]} {[%emt
00:00:12]} 11. Bg5 {[%clk 00:17:50]} {[%emt 00:01:01]} Nde7 {[%clk 00:18:16]}
{[%emt 00:01:28]} 12. Qxd8 {[%clk 00:16:39]} {[%emt 00:01:17]} Rxd8 {[%clk
00:18:19]} {[%emt 00:00:02]} 13. Rad1 {[%clk 00:16:40]} {[%emt 00:00:02]} Rf8
{[%clk 00:17:59]} {[%emt 00:00:26]} 14. Bd2 {[%clk 00:16:25]} {[%emt 00:00:19]}
Ne5 {[%clk 00:17:11]} {[%emt 00:00:53]} 15. Nxe5 {[%clk 00:15:56]} {[%emt
00:00:34]} Bxe5 {[%clk 00:17:15]} {[%emt 00:00:02]} 16. b3 {[%clk 00:15:44]}
{[%emt 00:00:16]} Nf5 {[%clk 00:16:20]} {[%emt 00:01:01]} 17. Ne4 {[%clk
00:13:23]} {[%emt 00:02:23]} Bd7 {[%clk 00:15:26]} {[%emt 00:01:02]} 18. Bb4
{[%clk 00:12:38]} {[%emt 00:00:49]} Rfd8 {[%clk 00:15:14]} {[%emt 00:00:17]} 19.
Rfe1 {[%clk 00:10:52]} {[%emt 00:01:50]} Bc6 {[%clk 00:14:58]} {[%emt
00:00:23]} 20. Ng3 {[%clk 00:09:04]} {[%emt 00:01:52]} Nxg3 {[%clk 00:14:13]}
{[%emt 00:00:50]} 21. hxg3 {[%clk 00:09:04]} {[%emt 00:00:05]} Bg7 {[%clk
00:14:16]} {[%emt 00:00:03]} 22. Bc5 {[%clk 00:08:29]} {[%emt 00:00:39]} Bc3
{[%clk 00:12:03]} {[%emt 00:02:19]} 23. Rxd8+ {[%clk 00:06:52]} {[%emt
00:01:42]} Rxd8 {[%clk 00:12:05]} {[%emt 00:00:03]} 24. Re3 {[%clk 00:06:27]}
{[%emt 00:00:28]} Bd2 {[%clk 00:11:52]} {[%emt 00:00:19]} 25. Re2 {[%clk
00:05:00]} {[%emt 00:01:31]} a6 {[%clk 00:11:39]} {[%emt 00:00:20]} 26. Bd3
{[%clk 00:04:38]} {[%emt 00:00:26]} Bc3 {[%clk 00:11:37]} {[%emt 00:00:07]} 27.
Ba3 {[%clk 00:04:08]} {[%emt 00:00:34]} Rd7 {[%clk 00:10:59]} {[%emt 00:00:45]}
28. Kh2 {[%clk 00:03:40]} {[%emt 00:00:30]} h5 {[%clk 00:10:02]} {[%emt
00:01:04]} 29. f3 {[%clk 00:03:17]} {[%emt 00:00:27]} Bf6 {[%clk 00:08:26]}
{[%emt 00:01:43]} 30. Bc1 {[%clk 00:02:30]} {[%emt 00:00:50]} Bc3 {[%clk
00:07:47]} {[%emt 00:00:46]} 31. a4 {[%clk 00:01:59]} {[%emt 00:00:37]} Rd8
{[%clk 00:06:57]} {[%emt 00:00:55]} 32. Bf4 {[%clk 00:01:28]} {[%emt 00:00:33]}
e5 {[%clk 00:06:23]} {[%emt 00:00:42]} 33. Bxe5 {[%clk 00:00:58]} {[%emt
00:00:34]} Bxe5 {[%clk 00:06:21]} {[%emt 00:00:08]} 34. Rxe5 {[%clk 00:01:00]}
{[%emt 00:00:03]} Rd7 {[%clk 00:06:23]} {[%emt 00:00:02]} 35. Re8+ {[%clk
00:00:55]} {[%emt 00:00:09]} Kg7 {[%clk 00:06:26]} {[%emt 00:00:02]} 36. Re2
{[%clk 00:00:56]} {[%emt 00:00:03]} Kf6 {[%clk 00:06:22]} {[%emt 00:00:11]} 37.
Be4 {[%clk 00:00:57]} {[%emt 00:00:04]} Bxe4 {[%clk 00:06:17]} {[%emt
00:00:10]} 38. Rxe4 {[%clk 00:01:01]} {[%emt 00:00:01]} Rd2 {[%clk 00:06:12]}
{[%emt 00:00:10]} 39. Rc4 {[%clk 00:01:03]} {[%emt 00:00:03]} Rd7 {[%clk
00:06:10]} {[%emt 00:00:06]} 40. Rc5 {[%clk 00:01:01]} {[%emt 00:00:08]} Ke6
{[%clk 00:06:11]} {[%emt 00:00:04]} 41. c3 {[%clk 00:00:51]} {[%emt 00:00:15]}
Kd6 {[%clk 00:05:49]} {[%emt 00:00:27]} 42. Rc4 {[%clk 00:00:53]} {[%emt
00:00:02]} Ke7 {[%clk 00:05:37]} {[%emt 00:00:17]} 43. Kh3 {[%clk 00:00:56]}
{[%emt 00:00:03]} Kd8 {[%clk 00:05:30]} {[%emt 00:00:12]} 44. b4 {[%clk
00:00:50]} {[%emt 00:00:11]} Re7 {[%clk 00:05:28]} {[%emt 00:00:07]} 45. a5
{[%clk 00:00:50]} {[%emt 00:00:04]} Re3 {[%clk 00:05:06]} {[%emt 00:00:27]} 46.
g4 {[%clk 00:00:45]} {[%emt 00:00:09]} hxg4+ {[%clk 00:04:47]} {[%emt
00:00:25]} 47. Kxg4 {[%clk 00:00:48]} {[%emt 00:00:02]} Re5 {[%clk 00:04:48]}
{[%emt 00:00:05]} 48. g3 {[%clk 00:00:47]} {[%emt 00:00:06]} Re3 {[%clk
00:04:50]} {[%emt 00:00:02]} 49. f4 {[%clk 00:00:44]} {[%emt 00:00:08]} f5+
{[%clk 00:04:46]} {[%emt 00:00:10]} 50. Kh4 {[%clk 00:00:34]} {[%emt 00:00:13]}
Kd7 {[%clk 00:04:14]} {[%emt 00:00:39]} 51. g4 {[%clk 00:00:35]} {[%emt
00:00:04]} Re4 {[%clk 00:03:16]} {[%emt 00:01:02]} 52. Rxe4 {[%clk 00:00:20]}
{[%emt 00:00:20]} fxe4 {[%clk 00:03:20]} {[%emt 00:00:02]} 53. Kg3 {[%clk
00:00:20]} {[%emt 00:00:06]} Ke6 {[%clk 00:03:22]} {[%emt 00:00:03]} 54. c4
{[%clk 00:00:21]} {[%emt 00:00:03]} Kf6 {[%clk 00:02:59]} {[%emt 00:00:28]} 55.
Kf2 {[%clk 00:00:25]} {[%emt 00:00:01]} g5 {[%clk 00:03:01]} {[%emt 00:00:03]}
56. f5 {[%clk 00:00:21]} {[%emt 00:00:09]} Ke5 {[%clk 00:03:03]} {[%emt
00:00:03]} 57. Ke3 {[%clk 00:00:24]} {[%emt 00:00:03]} 1-0

[Event "MČR juniorů a juniorek v rapid šachu 2023"]
[Site "Czech Republic"]
[Date "2023.09.23"]
[Round "4.17"]
[White "Pejrimovska, Viola Ruby"]
[Black "Stejskal, Michal"]
[Result "0-1"]
[TimeControl "20 min + 5 sec per move"]
[WhiteFideId "23709529"]
[BlackFideId "398195"]
[WhiteElo "1581"]
[BlackElo "1959"]

1. e4 {[%clk 00:20:09]} e5 {[%clk 00:20:07]} {[%emt 00:00:04]} 2. Nf3 {[%clk
00:20:10]} {[%emt 00:00:03]} Nf6 {[%clk 00:20:10]} {[%emt 00:00:02]} 3. Nc3
{[%clk 00:20:13]} {[%emt 00:00:03]} Nc6 {[%clk 00:20:13]} {[%emt 00:00:02]} 4.
d4 {[%clk 00:20:16]} {[%emt 00:00:01]} exd4 {[%clk 00:20:14]} {[%emt 00:00:04]}
5. Nd5 {[%clk 00:20:20]} {[%emt 00:00:02]} Be7 {[%clk 00:19:46]} {[%emt
00:00:33]} 6. Bc4 {[%clk 00:19:53]} {[%emt 00:00:32]} O-O {[%clk 00:19:35]}
{[%emt 00:00:15]} 7. O-O {[%clk 00:19:45]} {[%emt 00:00:14]} d6 {[%clk
00:19:37]} {[%emt 00:00:03]} 8. Nxd4 {[%clk 00:19:34]} {[%emt 00:00:15]} Nxd4
{[%clk 00:19:26]} {[%emt 00:00:15]} 9. Qxd4 {[%clk 00:19:26]} {[%emt 00:00:14]}
Nxd5 {[%clk 00:19:27]} {[%emt 00:00:04]} 10. exd5 {[%clk 00:18:23]} {[%emt
00:01:07]} Bf6 {[%clk 00:19:30]} {[%emt 00:00:03]} 11. Qd1 {[%clk 00:17:02]}
{[%emt 00:01:25]} Bf5 {[%clk 00:19:15]} {[%emt 00:00:21]} 12. g4 {[%clk
00:14:58]} {[%emt 00:02:09]} Bd7 {[%clk 00:18:55]} {[%emt 00:00:25]} 13. Bd3
{[%clk 00:14:19]} {[%emt 00:00:44]} g6 {[%clk 00:18:25]} {[%emt 00:00:36]} 14.
c3 {[%clk 00:13:50]} {[%emt 00:00:35]} Re8 {[%clk 00:18:17]} {[%emt 00:00:13]}
15. f4 {[%clk 00:12:08]} {[%emt 00:01:46]} c6 {[%clk 00:17:33]} {[%emt
00:00:49]} 16. g5 {[%clk 00:10:48]} {[%emt 00:01:25]} Be7 {[%clk 00:17:26]}
{[%emt 00:00:13]} 17. h4 {[%clk 00:08:14]} {[%emt 00:02:38]} cxd5 {[%clk
00:16:50]} {[%emt 00:00:41]} 18. f5 {[%clk 00:07:56]} {[%emt 00:00:23]} Qb6+
{[%clk 00:16:53]} {[%emt 00:00:02]} 19. Kh2 {[%clk 00:07:55]} {[%emt 00:00:05]}
d4 {[%clk 00:16:36]} {[%emt 00:00:23]} 20. f6 {[%clk 00:04:47]} {[%emt
00:03:13]} Bf8 {[%clk 00:16:39]} {[%emt 00:00:02]} 21. h5 {[%clk 00:04:24]}
{[%emt 00:00:28]} Be6 {[%clk 00:15:05]} {[%emt 00:01:39]} 22. Qc2 {[%clk
00:02:01]} {[%emt 00:02:29]} Bf5 {[%clk 00:11:39]} {[%emt 00:03:30]} 23. Bxf5
{[%clk 00:00:35]} {[%emt 00:01:30]} gxf5 {[%clk 00:11:42]} {[%emt 00:00:03]} 24.
g6 {[%clk 00:00:11]} {[%emt 00:00:29]} hxg6 {[%clk 00:11:27]} {[%emt 00:00:20]}
25. hxg6 {[%clk 00:00:11]} {[%emt 00:00:05]} fxg6 {[%clk 00:11:28]} {[%emt
00:00:05]} 26. Qg2 {[%clk 00:00:13]} {[%emt 00:00:02]} Kf7 {[%clk 00:10:57]}
{[%emt 00:00:37]} 27. Rg1 {[%clk 00:00:16]} {[%emt 00:00:02]} g5 {[%clk
00:09:54]} {[%emt 00:01:07]} 28. Qxg5 {[%clk 00:00:13]} {[%emt 00:00:07]} Re2+
{[%clk 00:09:57]} {[%emt 00:00:03]} 29. Kh3 {[%clk 00:00:15]} {[%emt 00:00:03]}
d5 {[%clk 00:07:53]} {[%emt 00:02:09]} 30. Qg6+ {[%clk 00:00:17]} {[%emt
00:00:03]} Ke6 {[%clk 00:07:57]} {[%emt 00:00:02]} 31. f7+ {[%clk 00:00:15]}
{[%emt 00:00:06]} Kd7 {[%clk 00:07:37]} {[%emt 00:00:26]} 32. Qxf5+ {[%clk
00:00:10]} {[%emt 00:00:10]} Qe6 {[%clk 00:07:41]} 33. Qxe6+ {[%clk 00:00:13]}
{[%emt 00:00:01]} Kxe6 {[%clk 00:07:45]} {[%emt 00:00:02]} 34. cxd4 {[%clk
00:00:12]} {[%emt 00:00:06]} Bd6 {[%clk 00:07:36]} {[%emt 00:00:14]} 35. Bg5
{[%clk 00:00:07]} {[%emt 00:00:09]} Rh8+ {[%clk 00:07:02]} {[%emt 00:00:39]} 36.
Kg4 {[%clk 00:00:10]} {[%emt 00:00:02]} Re4+ {[%clk 00:06:59]} {[%emt
00:00:08]} 37. Kf3 {[%clk 00:00:08]} {[%emt 00:00:06]} Kxf7 {[%clk 00:06:59]}
{[%emt 00:00:06]} 38. Raf1 {[%clk 00:00:08]} {[%emt 00:00:05]} Ke6 {[%clk
00:06:46]} {[%emt 00:00:18]} 39. Kg2 {[%clk 00:00:08]} {[%emt 00:00:05]} Rh2+
{[%clk 00:06:10]} {[%emt 00:00:41]} 40. Kf3 {[%clk 00:00:08]} {[%emt 00:00:05]}
Rh3+ {[%clk 00:05:50]} {[%emt 00:00:25]} 41. Kg2 {[%clk 00:00:10]} {[%emt
00:00:03]} Rg3+ {[%clk 00:05:42]} {[%emt 00:00:13]} 42. Kf2 {[%clk 00:00:10]}
{[%emt 00:00:05]} Rxg1 {[%clk 00:05:22]} {[%emt 00:00:25]} 43. Rxg1 {[%clk
00:00:13]} {[%emt 00:00:02]} Rxd4 {[%clk 00:05:25]} {[%emt 00:00:02]} 44. Be3
{[%clk 00:00:15]} {[%emt 00:00:03]} Ra4 {[%clk 00:05:23]} {[%emt 00:00:07]} 45.
Rg6+ {[%clk 00:00:14]} {[%emt 00:00:05]} Kd7 {[%clk 00:05:26]} {[%emt
00:00:02]} 46. Rg7+ {[%clk 00:00:14]} {[%emt 00:00:05]} Kc6 {[%clk 00:05:10]}
{[%emt 00:00:22]} 47. a3 {[%clk 00:00:09]} {[%emt 00:00:11]} Rc4 {[%clk
00:05:00]} {[%emt 00:00:14]} 48. Kf3 {[%clk 00:00:07]} {[%emt 00:00:06]} d4
{[%clk 00:04:29]} {[%emt 00:00:35]} 49. Bg5 {[%clk 00:00:00]} {[%emt 00:00:08]}
0-1